Workbook

Sheet RANKING
B5: RANKING
B6: SECTOR FINANCIERO POPULAR Y SOLIDARIO SEGMENTO 1
B7: PERIODO DEL 1 ENERO DEL 2018 AL 30 DE SEPTIEMBRE DEL 2018
B8: (Dólares) | D8: *Seleccionar una solo fecha | H8: *Seleccionar una solo cuenta
B10: ENTIDAD | C10: DÓLARES | D10: PROCENTAJE
B11: Etiquetas de fila | C11: Suma de VALOR | D11: Suma de VALOR2
B12: JUVENTUD ECUATORIANA PROGRESISTA LTDA | C12: 1821662197 | D12: 0.1937799299
B13: JARDIN AZUAYO LTDA | C13: 835554835 | D13: 0.08888242707
B14: POLICIA NACIONAL LTDA | C14: 767181673.3 | D14: 0.08160920896
B15: COOPROGRESO LTDA | C15: 491638380.2 | D15: 0.05229819833
B16: 29 DE OCTUBRE LTDA | C16: 483343761.3 | D16: 0.05141585545
B17: OSCUS LTDA | C17: 369806243.8 | D17: 0.03933826378
B18: SAN FRANCISCO LTDA | C18: 326695759 | D18: 0.03475237143
B19: RIOBAMBA LTDA | C19: 300393354.8 | D19: 0.03195444432
B20: DE LA PEQUEÑA EMPRESA DE COTOPAXI LTDA | C20: 298273820.7 | D20: 0.03172897817
B21: ALIANZA DEL VALLE LTDA | C21: 294200150.9 | D21: 0.03129564017
B22: VICENTINA MANUEL ESTEBAN GODOY ORTEGA LTDA | C22: 278847848.1 | D22: 0.02966253379
B23: ANDALUCIA LTDA | C23: 250402159.6 | D23: 0.02663661409
B24: MUSHUC RUNA LTDA | C24: 219362338.6 | D24: 0.02333474268
B25: DE LA PEQUEÑA EMPRESA BIBLIAN LTDA | C25: 219270579.8 | D25: 0.0233249818
B26: CAJA CENTRAL FINANCOOP | C26: 212824460.6 | D26: 0.0226392737
B27: TULCAN LTDA | C27: 186992297.6 | D27: 0.01989136866
B28: ATUNTAQUI LTDA | C28: 184550389.4 | D28: 0.01963160985
B29: EL SAGRARIO LTDA | C29: 183419450.2 | D29: 0.01951130581
B30: 23 DE JULIO LTDA | C30: 166989067 | D30: 0.01776351826
B31: PABLO MUÑOZ VEGA LTDA | C31: 166339612.1 | D31: 0.01769443228
B32: SAN JOSE LTDA | C32: 149894149.4 | D32: 0.01594504065
B33: DE LOS SERVIDORES PUBLICOS DEL MINISTERIO DE EDUCACION Y CULTURA | C33: 145950148.8 | D33: 0.01552549625
B34: CAMARA DE COMERCIO DE AMBATO LTDA | C34: 144662159 | D34: 0.0153884859
B35: FERNANDO DAQUILEMA | C35: 131802660.4 | D35: 0.01402055241
B36: DE LA PEQUEÑA EMPRESA DE PASTAZA LTDA | C36: 131018361.5 | D36: 0.01393712234
B37: CHIBULEO LTDA | C37: 128556080 | D37: 0.01367519632
B38: PILAHUIN TIO LTDA | C38: 126187017 | D38: 0.01342318644
B39: SANTA ROSA LTDA | C39: 118585187.6 | D39: 0.01261453928
B40: AMBATO LTDA | C40: 105745206.2 | D40: 0.01124868193
B41: 15 DE ABRIL LTDA | C41: 81397034.1 | D41: 0.008658636925
B42: CONSTRUCCION COMERCIO Y PRODUCCION LTDA | C42: 79128896.41 | D42: 0.008417363014
B43: Total general | C43: 9400675280 | D43: 1

Sheet CATASTRO (hidden)
A1: NOM_RAZON_SOCIAL | B1: NUM_RUC | C1: Direccin | D1: Telfono | E1: Email | F1: NombreGerente | G1: SEGMENTO | H1: ACTIVO | I1: PASIVO | J1: PATRIMONIO | K1: CARTERA POR VENCER | L1: CARTERA QUE NO DEVENGA INTERES | M1: CARTERA VENCIDA | N1: Microcredito2 | O1: Comercial | P1: Consumo3 | Q1: Inmobiliario | R1: Productivo | S1: Vivienda4 | T1: Educativo
A2: 23 DE JULIO LTDA | B2: 1790093204001 | C2: SUCRE E132 JUAN MONTALVO Y TERAN | D2: 022362191 | E2: lecheverria@coop23dejulio.fin.ec | F2: WALTER EDUARDO AGUIRRE SOSA | G2: 1
A3: 29 DE OCTUBRE LTDA | B3: 1790567699001 | C3: MARISCAL SUCRE OE6-140 CAÑARIS | D3: 022640509 | E3: eeguez@29deoctubre.fin.ec | F3: EGUEZ LUPERA EDWIN CARLOS MARIO | G3: 1
A4: ALIANZA DEL VALLE LTDA | B4: 1790501469001 | C4: DUCHICELA S/N HUANCAVILCA | D4: 022998600 | E4: jzambrano@alianzadelvalle.fin.ec | F4: CADENA LUCERO HECTOR ROLANDO | G4: 1
A5: ANDALUCIA LTDA | B5: 1790325083001 | C5: JORGE PIEDRA OE5-95 AZOGUES | D5: 023301920 | E5: gerenciageneral@andalucia.fin.ec | F5: ORTIZ PAREDES MAURICIO BOLIVAR | G5: 1
A6: ATUNTAQUI LTDA | B6: 1090033456001 | C6: RIO AMAZONAS 1217 SUCRE | D6: 062909399 | E6: secretaria@atuntaqui.fin.ec | F6: BENALCAZAR MOLINA RODRIGO SANTIAGO | G6: 1
A7: CAJA CENTRAL FINANCOOP | B7: 1791708040001 | C7: AV. 6 DE DICIEMBRE N33-55 AV. ELOY ALFARO | D7: 022553117 | E7: gerencia@financoop.net | F7: MARIN LUIS BAUTISTA QUISPE | G7: 1
A8: CAMARA DE COMERCIO DE AMBATO LTDA | B8: 1890080967001 | C8: MONTALVO 3-43 ROCAFUERTE | D8: 032826057 | E8: vvaldez@ccca.fin.ec | F8: RAMIRO MARCELO PORTERO LOPEZ | G8: 1
A9: COOPROGRESO LTDA | B9: 1790451801001 | C9: AV. MANUEL CÓRDOVA GALARZA S/N MARIETA DE VEINTIMILLA 9380 | D9: 024000900 | E9: gerencia@cooprogreso.fin.ec | F9: MUÑOZ LOPEZ WASHINGTON STALIN | G9: 1
A10: DE LA PEQUEÑA EMPRESA BIBLIAN LTDA | B10: 0390027923001 | C10: MARISCAL SUCRE 3-38 DANIEL MUÑOZ | D10: 072230836 | E10: info@cacpebiblian.fin.ec | F10: GONZALEZ BUSTOS JUAN PABLO | G10: 1
A11: DE LA PEQUEÑA EMPRESA DE COTOPAXI LTDA | B11: 0590052000001 | C11: SANCHEZ DE ORELLANA 1544 RAMIREZ FITA | D11: 032807900 | E11: vescobar@cacpeco.com | F11: VIRGINIA DEL CARMEN ESCOBAR JACOME | G11: 1
A12: DE LA PEQUEÑA EMPRESA DE PASTAZA LTDA | B12: 1690012606001 | C12: Atahualpa S/N GENERAL VILLAMIL | D12: 032883042 | E12: secretariacacpepas@gmail.com | F12: ACUÑA CARRASCO EDGAR MAXTRANCEL | G12: 1
A13: DE LOS SERVIDORES PUBLICOS DEL MINISTERIO DE EDUCACION Y CULTURA | B13: 1790979016001 | C13: EL ORO N19-22 AV. UNIVERSITARIA | D13: 022237782 | E13: vinicioa@cacspmec.fin.ec | F13: ANTAMBA GUERRA WASHINGTON VINICIO | G13: 1
A14: EL SAGRARIO LTDA | B14: 1890037646001 | C14: SUCRE S/N QUITO | D14: 032997999 | E14: fvelastegui@elsagrario.fin.ec | F14: FREDY PATRICIO VELASTEGUI MORENO | G14: 1
A15: JARDIN AZUAYO LTDA | B15: 0190155722001 | C15: BENIGNO MALO 27638 ENTRE GRAN COLOMBIA Y SIMON BOLIVAR. 9-75 GRAN COLOMBIA | D15: 072833255 | E15: coopjardinazuayo@jardinazuayo.fin.ec | F15: URGILES MARTINEZ JUAN CARLOS | G15: 1
A16: JUVENTUD ECUATORIANA PROGRESISTA LTDA | B16: 0190115798001 | C16: AV. ORDOÑEZ LAZO, KM6 SAYAUSÍ SN CENTRO PARROQUIAL SAYAUSI | D16: 074135000 | E16: falvear@coopjep.fin.ec | F16: SALDAÑA AVILA KARINA DEL ROSARIO | G16: 1
A17: MUSHUC RUNA LTDA | B17: 1890141877001 | C17: MONTALVO S/N ENTRE JUAN BENIGNO VELA Y Av. CEVALLOS | D17: 032826810 | E17: contador@mushucruna.com | F17: CHANGO PACHA LUIS ALFONSO | G17: 1
A18: OSCUS LTDA | B18: 1890001323001 | C18: LALAMA 0639 SUCRE Y BOLIVAR | D18: 032821131 | E18: asegura@oscus.coop | F18: GALLEGOS BAYAS FREDDY BLAS | G18: 1
A19: PABLO MUÑOZ VEGA LTDA | B19: 0490001883001 | C19: COLON S/N 10 DE AGOSTO | D19: 062980382 | E19: carlosacosta@cpmv.fin.ec | F19: CARLOS ALONSO ACOSTA CARRERA | G19: 1
A20: PILAHUIN TIO LTDA | B20: 1091720902001 | C20: SUCRE 11-09 MORALES | D20: 062927234 | E20: coac@pilahuintio.ec | F20: ANGEL ESTEBAN MAZABANDA MOPOCITA | G20: 1
A21: POLICIA NACIONAL LTDA | B21: 1790866084001 | C21: VOZ ANDES N 42 – 42 AV. AMÉRICA | D21: 3984999 | E21: alejandro.rivadeneira@cooperando.fin.ec | F21: LASCANO ENRIQUE MILTON | G21: 1
A22: RIOBAMBA LTDA | B22: 0690045389001 | C22: 10 DE AGOSTO S/N CRISTOBAL COLON | D22: 032962431 | E22: riobamba@cooprio.fin.ec | F22: MORALES MOROCHO SEGUNDO PEDRO | G22: 1
A23: SAN FRANCISCO LTDA | B23: 1890003628001 | C23: MONTALVO S/N 12 DE NOVIEMBRE | D23: 032824270 | E23: sistemas1@coac-sanfra.com | F23: PAREDES LOPEZ ESTUARDO RIQUELMEN | G23: 1
A24: SAN JOSE LTDA | B24: 0290003288001 | C24: CHIMBORAZO 536 TRES DE MARZO | D24: 032630297 | E24: coopsanjose@andinanet.net | F24: CAPUZ CAMACHO CESAR LUIS | G24: 1
A25: SANTA ROSA LTDA | B25: 0790024656001 | C25: CUENCA S/N LIBERTAD | D25: 072944190 | E25: secretaria@coopacs.fin.ec | F25: SOLANO DURAN MANUEL AGUSTIN | G25: 1
A26: TULCAN LTDA | B26: 0490002669001 | C26: SUCRE 54061 ATAHUALPA | D26: 062960404 | E26: info@cooptulcan.com | F26: MOSQUERA LOPEZ MARCO ERIC ORLANDO | G26: 1
A27: VICENTINA MANUEL ESTEBAN GODOY ORTEGA LTDA | B27: 1190068389001 | C27: BOLÍVAR 1056 AZUAY | D27: 072584800 | E27: abustos@coopmego.com | F27: ALBERTO GEOVANNY BUSTOS PARRA | G27: 1

Sheet Hoja6 (hidden)
A4: NOM_RAZON_SOCIAL | B4: NUM_RUC | C4: Telfono | D4: Direccin | E4: Email | F4: NombreGerente | G4: SEGMENTO
A5: 29 DE OCTUBRE LTDA | B5: 1790567699001 | C5: 022640509 | D5: MARISCAL SUCRE OE6-140 CAÑARIS | E5: eeguez@29deoctubre.fin.ec | F5: EGUEZ LUPERA EDWIN CARLOS MARIO | G5: 1
A6: Total general

Sheet Hoja1 (hidden)
A2: REPORTE EJECUTIVO
A9: Razón Social: | B9: =+Hoja6!A5 -> 29 DE OCTUBRE LTDA
A10: Número de RUC: | B10: =+Hoja6!B5 -> 1790567699001 | H10: Segmento: | I10: =+Hoja6!G5 -> 1
A11: Dirección: | B11: =+Hoja6!D5 -> MARISCAL SUCRE OE6-140 CAÑARIS | H11: Telefono: | I11: =+Hoja6!C5 -> 022640509
A12: Correo electronico : | B12: =+Hoja6!E5 -> eeguez@29deoctubre.fin.ec
A13: Representante Legal: | B13: =+Hoja6!F5 -> EGUEZ LUPERA EDWIN CARLOS MARIO
A14: Fecha de corte:
A16: Cuentas principales
A17: Cuenta | B17: Valor | C17: Ranking
A18: Activos: | B18: =+VLOOKUP(B9,'Ranking por a,p,p'!B2:E28,2,0) -> 354485209.6 | C18: =+VLOOKUP(B9,'Ranking por a,p,p'!B2:E29,4,0) -> 5
A19: Pasivos: | B19: =+VLOOKUP(B9,'Ranking por a,p,p'!H2:I29,2,0) -> 305817226.9 | C19: =+VLOOKUP(B9,'Ranking por a,p,p'!H2:K29,4,0) -> 5 | E19: Grafico en barra del como se encuentra la coac frente al sistema
A20: Patrimonio: | B20: =+VLOOKUP(B9,'Ranking por a,p,p'!N2:O29,2,0) -> 48667982.7 | C20: =+VLOOKUP(B9,'Ranking por a,p,p'!N2:Q28,4,0) -> 4
A25: Cartera por tipo de crédito tabla pintado los porcentajes | E25: Composicion de la cartera
A26: Microcredito | G26: 3 rubros(vencer,nodevenga,vencido)
A27: Comercial
A28: Consumo
A29: Inmobiliario
A30: Productivo
A31: Vivienda
A32: Educativo

Sheet Ranking por a,p,p (hidden)
B1: ACTIVOS | H1: Pasivo | N1: Patrimonio
B2: ENTIDAD | C2: DÓLARES | D2: PROCENTAJE | E2: Ranking | H2: ENTIDAD | I2: DÓLARES | J2: PROCENTAJE | K2: Ranking | N2: ENTIDAD | O2: DÓLARES | P2: PROCENTAJE | Q2: Ranking
B3: JUVENTUD ECUATORIANA PROGRESISTA LTDA | C3: 1187758361 | D3: 0.1788365307 | E3: 1 | H3: JUVENTUD ECUATORIANA PROGRESISTA LTDA | I3: 1057048698 | J3: 0.1866114265 | K3: 1 | N3: JUVENTUD ECUATORIANA PROGRESISTA LTDA | O3: 130709663 | P3: 0.1337662549 | Q3: 1
B4: JARDIN AZUAYO LTDA | C4: 639156944.4 | D4: 0.09623557637 | E4: 2 | H4: JARDIN AZUAYO LTDA | I4: 552710815.6 | J4: 0.09757559316 | K4: 2 | N4: POLICIA NACIONAL LTDA | O4: 102546955.8 | P4: 0.1049449744 | Q4: 2
B5: POLICIA NACIONAL LTDA | C5: 531928832 | D5: 0.08009062279 | E5: 3 | H5: POLICIA NACIONAL LTDA | I5: 429381876.2 | J5: 0.07580309645 | K5: 3 | N5: JARDIN AZUAYO LTDA | O5: 86446128.82 | P5: 0.08846763612 | Q5: 3
B6: COOPROGRESO LTDA | C6: 364240396.5 | D6: 0.05484237448 | E6: 4 | H6: COOPROGRESO LTDA | I6: 324624297.6 | J6: 0.05730918864 | K6: 4 | N6: 29 DE OCTUBRE LTDA | O6: 48667982.7 | P6: 0.04980606353 | Q6: 4
B7: 29 DE OCTUBRE LTDA | C7: 354485209.6 | D7: 0.05337357085 | E7: 5 | H7: 29 DE OCTUBRE LTDA | I7: 305817226.9 | J7: 0.05398898749 | K7: 5 | N7: SAN FRANCISCO LTDA | O7: 48569400.01 | P7: 0.04970517552 | Q7: 5
B8: SAN FRANCISCO LTDA | C8: 295886817.8 | D8: 0.04455062046 | E8: 6 | H8: OSCUS LTDA | I8: 249940859.7 | J8: 0.04412457102 | K8: 6 | N8: RIOBAMBA LTDA | O8: 43885222.51 | P8: 0.04491146045 | Q8: 6
B9: OSCUS LTDA | C9: 286800106.9 | D9: 0.04318246689 | E9: 7 | H9: SAN FRANCISCO LTDA | I9: 247317417.8 | J9: 0.04366142846 | K9: 7 | N9: DE LA PEQUEÑA EMPRESA DE COTOPAXI LTDA | O9: 43162480.63 | P9: 0.04417181755 | Q9: 7
B10: RIOBAMBA LTDA | C10: 264582463.1 | D10: 0.03983723569 | E10: 8 | H10: RIOBAMBA LTDA | I10: 220697240.6 | J10: 0.03896190115 | K10: 8 | N10: COOPROGRESO LTDA | O10: 39616098.89 | P10: 0.04054250513 | Q10: 8
B11: VICENTINA MANUEL ESTEBAN GODOY ORTEGA LTDA | C11: 247177992.8 | D11: 0.0372167068 | E11: 9 | H11: VICENTINA MANUEL ESTEBAN GODOY ORTEGA LTDA | I11: 208840209.8 | J11: 0.03686866038 | K11: 9 | N11: VICENTINA MANUEL ESTEBAN GODOY ORTEGA LTDA | O11: 38337782.97 | P11: 0.03923429631 | Q11: 9
B12: CAJA CENTRAL FINANCOOP | C12: 215084987 | D12: 0.03238457764 | E12: 10 | H12: CAJA CENTRAL FINANCOOP | I12: 200960704.7 | J12: 0.03547761219 | K12: 10 | N12: OSCUS LTDA | O12: 36859247.25 | P12: 0.03772118564 | Q12: 10
B13: DE LA PEQUEÑA EMPRESA DE COTOPAXI LTDA | C13: 211259111.7 | D13: 0.03180852928 | E13: 11 | H13: ALIANZA DEL VALLE LTDA | I13: 171772925.2 | J13: 0.03032480023 | K13: 11 | N13: MUSHUC RUNA LTDA | O13: 32757386.93 | P13: 0.033523405 | Q13: 11
B14: ALIANZA DEL VALLE LTDA | C14: 201602637.2 | D14: 0.03035458843 | E14: 12 | H14: DE LA PEQUEÑA EMPRESA DE COTOPAXI LTDA | I14: 168096631.1 | J14: 0.02967578709 | K14: 12 | N14: ALIANZA DEL VALLE LTDA | O14: 29829712.01 | P14: 0.0305272676 | Q14: 12
B15: ANDALUCIA LTDA | C15: 191198132.3 | D15: 0.02878801932 | E15: 13 | H15: ANDALUCIA LTDA | I15: 162823783 | J15: 0.02874491825 | K15: 13 | N15: DE LOS SERVIDORES PUBLICOS DEL MINISTERIO DE EDUCACION Y CULTURA | O15: 29302480.47 | P15: 0.02998770697 | Q15: 13
B16: MUSHUC RUNA LTDA | C16: 175740008.3 | D16: 0.02646054484 | E16: 14 | H16: MUSHUC RUNA LTDA | I16: 142982621.4 | J16: 0.02524215864 | K16: 14 | N16: ANDALUCIA LTDA | O16: 28374349.25 | P16: 0.02903787178 | Q16: 14
B17: ATUNTAQUI LTDA | C17: 152237840.3 | D17: 0.02292190742 | E17: 15 | H17: ATUNTAQUI LTDA | I17: 128322006.8 | J17: 0.02265397307 | K17: 15 | N17: EL SAGRARIO LTDA | O17: 26267293.43 | P17: 0.02688154332 | Q17: 15
B18: DE LA PEQUEÑA EMPRESA BIBLIAN LTDA | C18: 150449789 | D18: 0.02265268693 | E18: 16 | H18: DE LA PEQUEÑA EMPRESA BIBLIAN LTDA | I18: 125741884.7 | J18: 0.02219847819 | K18: 16 | N18: 23 DE JULIO LTDA | O18: 25818719.09 | P18: 0.02642247925 | Q18: 16
B19: EL SAGRARIO LTDA | C19: 144183227.7 | D19: 0.02170915319 | E19: 17 | H19: EL SAGRARIO LTDA | I19: 117915934.3 | J19: 0.02081688453 | K19: 17 | N19: DE LA PEQUEÑA EMPRESA BIBLIAN LTDA | O19: 24707904.3 | P19: 0.02528568852 | Q19: 17
B20: CAMARA DE COMERCIO DE AMBATO LTDA | C20: 129837635.6 | D20: 0.01954918866 | E20: 18 | H20: CAMARA DE COMERCIO DE AMBATO LTDA | I20: 113776903.2 | J20: 0.0200861798 | K20: 18 | N20: ATUNTAQUI LTDA | O20: 23915833.5 | P20: 0.02447509547 | Q20: 18
B21: 23 DE JULIO LTDA | C21: 129815215.2 | D21: 0.01954581291 | E21: 19 | H21: SAN JOSE LTDA | I21: 105664663.1 | J21: 0.01865404455 | K21: 19 | N21: TULCAN LTDA | O21: 21028387.28 | P21: 0.0215201275 | Q21: 19
B22: PABLO MUÑOZ VEGA LTDA | C22: 124812786.6 | D22: 0.01879261512 | E22: 20 | H22: PABLO MUÑOZ VEGA LTDA | I22: 104427417 | J22: 0.01843562107 | K22: 20 | N22: SANTA ROSA LTDA | O22: 20897618.46 | P22: 0.0213863007 | Q22: 20
B23: TULCAN LTDA | C23: 124384789.5 | D23: 0.01872817313 | E23: 21 | H23: 23 DE JULIO LTDA | I23: 103996496.1 | J23: 0.01835954627 | K23: 21 | N23: PABLO MUÑOZ VEGA LTDA | O23: 20385369.59 | P23: 0.0208620731 | Q23: 21
B24: SAN JOSE LTDA | C24: 121429557.2 | D24: 0.01828321436 | E24: 22 | H24: TULCAN LTDA | I24: 103356402.2 | J24: 0.01824654407 | K24: 22 | N24: DE LA PEQUEÑA EMPRESA DE PASTAZA LTDA | O24: 18698992.86 | P24: 0.01913626114 | Q24: 22
B25: DE LOS SERVIDORES PUBLICOS DEL MINISTERIO DE EDUCACION Y CULTURA | C25: 118232610.4 | D25: 0.01780186151 | E25: 23 | H25: DE LOS SERVIDORES PUBLICOS DEL MINISTERIO DE EDUCACION Y CULTURA | I25: 88930129.94 | J25: 0.01569972929 | K25: 23 | N25: CAMARA DE COMERCIO DE AMBATO LTDA | O25: 16060732.32 | P25: 0.01643630596 | Q25: 23
B26: SANTA ROSA LTDA | C26: 93632129.5 | D26: 0.01409785504 | E26: 24 | H26: PILAHUIN TIO LTDA | I26: 81969329.54 | J26: 0.01447086926 | K26: 24 | N26: SAN JOSE LTDA | O26: 15764894.14 | P26: 0.01613354973 | Q26: 24
B27: DE LA PEQUEÑA EMPRESA DE PASTAZA LTDA | C27: 93285164.93 | D27: 0.01404561382 | E27: 25 | H27: DE LA PEQUEÑA EMPRESA DE PASTAZA LTDA | I27: 74586172.07 | J27: 0.0131674463 | K27: 25 | N27: CAJA CENTRAL FINANCOOP | O27: 14124282.26 | P27: 0.01445457281 | Q27: 25
B28: PILAHUIN TIO LTDA | C28: 92384164.49 | D28: 0.01390995341 | E28: 26 | H28: SANTA ROSA LTDA | I28: 72734511.04 | J28: 0.01284055397 | K28: 26 | N28: PILAHUIN TIO LTDA | O28: 10414834.95 | P28: 0.0106583816 | Q28: 26
B29: Total general | C29: 6641586911 | D29: 1 | H29: Total general | I29: 5664437158 | J29: 1 | N29: Total general | O29: 977149753.5 | P29: 1

Sheet PARA REPORTE TOTAL (hidden)
A1: NOM_RAZON_SOCIAL | B1: 23 DE JULIO LTDA
B3: Etiquetas de columna
A4: Valores | B4: 2016-12-31
A5: Suma de A1_DE_1_A_30_DIAS | B5: 118752.28
A6: Suma de A1_DE_31_A_90DIAS | B6: 87811.94
A7: Suma de A1_DE_91_A_180_DIAS | B7: 134405.81
A8: Suma de A1_DE_181_A_360_DIAS | B8: 252709.37
A9: Suma de A1_DE_MAS_DE_360_DIAS | B9: 755762.38
A10: Suma de A2_DE_1_A_30_DIAS | B10: 11600.33
A11: Suma de A2_DE_31_A_90DIAS | B11: 10518.22
A12: Suma de A2_DE_91_A_180_DIAS | B12: 15065
A13: Suma de A2_DE_181_A_360_DIAS | B13: 29024.38
A14: Suma de A2_DE_MAS_DE_360_DIAS | B14: 47963.56
A15: Suma de A3_DE_1_A_30_DIAS | B15: 0
A16: Suma de A3_DE_31_A_90DIAS | B16: 7378.38
A17: Suma de A3_DE_91_A_180_DIAS | B17: 1791.74
A18: Suma de A3_DE_181_A_360_DIAS | B18: 9642.61
A19: Suma de A3_DE_MAS_DE_360_DIAS | B19: 5301.96
A20: Suma de A4_DE_1_A_30_DIAS | B20: 1282868.39
A21: Suma de A4_DE_31_A_90DIAS | B21: 2503954.13
A22: Suma de A4_DE_91_A_180_DIAS | B22: 3746133.25
A23: Suma de A4_DE_MAS_DE_180_DIAS | B23: 26191357.07
A24: Suma de A5_DE_1_A_30_DIAS | B24: 123525.64
A25: Suma de A5_DE_31_A_90DIAS | B25: 115387.24
A26: Suma de A5_DE_91_A_180_DIAS | B26: 151032.64
A27: Suma de A5_DE_MAS_DE_180_DIAS | B27: 520743.2
A28: Suma de A6_DE_31_A_90DIAS | B28: 275.52
A29: Suma de A6_DE_91_A_180_DIAS | B29: 101403.53
A30: Suma de A6_DE_181_A_360_DIAS | B30: 110833.12
A31: Suma de A6_DE_MAS_DE_360_DIAS | B31: 663500.33
A32: Suma de A7_DE_1_A_30_DIAS | B32: 129165.12
A33: Suma de A7_DE_31_A_90DIAS | B33: 214687.87
A34: Suma de A7_DE_181_A_360_DIAS | B34: 936038.08
A35: Suma de A7_DE_MAS_DE_360_DIAS | B35: 6281839.99
A36: Suma de A8_DE_1_A_30_DIAS | B36: 23186.37
A37: Suma de A8_DE_31_A_90DIAS | B37: 14632.91
A38: Suma de A8_DE_91_A_360_DIAS | B38: 61548.58
A39: Suma de A8_DE_MAS_DE_360_DIAS | B39: 265241.66
A40: Suma de A9_DE_1_A_30_DIAS | B40: 0
A41: Suma de A9_DE_31_A_90DIAS | B41: 5253.35
A42: Suma de A9_DE_91_A_360_DIAS | B42: 41731.9
A43: Suma de A9_DE_MAS_DE_360_DIAS | B43: 50346.21
A44: Suma de A10_DE_1_A_30_DIAS | B44: 1416981.96
A45: Suma de A10_DE_31_A_90DIAS | B45: 2607159.29
A46: Suma de A10_DE_91_A_180_DIAS | B46: 3853512.2
A47: Suma de A10_DE_181_A_360_DIAS | B47: 7111740.96
A48: Suma de A10_DE_MAS_DE_360_DIAS | B48: 18473253.01
A49: Suma de A11_DE_1_A_30_DIAS | B49: 352035.74
A50: Suma de A11_DE_31_A_90DIAS | B50: 330625.33
A51: Suma de A11_DE_91_A_180_DIAS | B51: 445944.35
A52: Suma de A11_DE_181_A_360_DIAS | B52: 703430.96
A53: Suma de A11_DE_MAS_DE_360_DIAS | B53: 997249.55
A54: Suma de A12_DE_1_A_30_DIAS | B54: 4
A55: Suma de A12_DE_31_A_90DIAS | B55: 280973.31
A56: Suma de A12_DE_91_A_180_DIAS | B56: 510141.02
A57: Suma de A12_DE_181_A_360_DIAS | B57: 696534.49
A58: Suma de A12_DE_MAS_DE_360_DIAS | B58: 1346172.34
A59: Suma de A13_DE_1_A_30_DIAS | B59: 0
A60: Suma de A13_DE_31_A_90DIAS | B60: 0
A61: Suma de A13_DE_91_A_180_DIAS | B61: 0
A62: Suma de A13_DE_181_A_360_DIAS | B62: 0
A63: Suma de A13_DE_MAS_DE_360_DIAS | B63: 0
A64: Suma de A14_DE_1_A_30_DIAS | B64: 0
A65: Suma de A14_DE_31_A_90DIAS | B65: 0
A66: Suma de A14_DE_91_A_180_DIAS | B66: 0
A67: Suma de A14_DE_181_A_360_DIAS | B67: 0
A68: Suma de A14_DE_MAS_DE_360_DIAS | B68: 0
A69: Suma de A15_DE_1_A_30_DIAS | B69: 0
A70: Suma de A15_DE_31_A_90DIAS | B70: 0
A71: Suma de A15_DE_91_A_180_DIAS | B71: 0
A72: Suma de A15_DE_181_A_360_DIAS | B72: 0
A73: Suma de A15_DE_MAS_DE_360_DIAS | B73: 0
A74: Suma de A16_DE_1_A_30_DIAS | B74: 0
A75: Suma de A16_DE_31_A_90DIAS | B75: 0
A76: Suma de A16_DE_91_A_180_DIAS | B76: 0
A77: Suma de A16_DE_181_A_360_DIAS | B77: 0
A78: Suma de A16_DE_MAS_DE_360_DIAS | B78: 0
A79: Suma de A17_DE_1_A_30_DIAS | B79: 0
A80: Suma de A17_DE_31_A_90DIAS | B80: 0
A81: Suma de A17_DE_91_A_180_DIAS | B81: 0
A82: Suma de A17_DE_181_A_360_DIAS | B82: 0
A83: Suma de A17_DE_MAS_DE_360_DIAS | B83: 0
A84: Suma de A18_DE_1_A_30_DIAS | B84: 0
A85: Suma de A18_DE_31_A_90DIAS | B85: 0
A86: Suma de A18_DE_91_A_180_DIAS | B86: 0
A87: Suma de A18_DE_181_A_360_DIAS | B87: 0
A88: Suma de A18_DE_MAS_DE_360_DIAS | B88: 0
A89: Suma de A19_DE_1_A_30_DIAS | B89: 75454.16
A90: Suma de A19_DE_31_A_90DIAS | B90: 172087.87
A91: Suma de A19_DE_91_A_180_DIAS | B91: 288377.58
A92: Suma de A19_DE_181_A_360_DIAS | B92: 566634.08
A93: Suma de A19_DE_MAS_DE_360_DIAS | B93: 3111009.78
A94: Suma de A20_DE_1_A_30_DIAS | B94: 509.43
A95: Suma de A20_DE_31_A_90DIAS | B95: 523.56
A96: Suma de A20_DE_91_A_180_DIAS | B96: 810.35
A97: Suma de A20_DE_181_A_360_DIAS | B97: 744.47
A98: Suma de A20_DE_MAS_DE_360_DIAS | B98: 1378.96
A99: Suma de A21_DE_1_A_30_DIAS | B99: 0
A100: Suma de A21_DE_31_A_90DIAS | B100: 362.69
A101: Suma de A21_DE_91_A_180_DIAS | B101: 45.28
A102: Suma de A21_DE_181_A_360_DIAS | B102: 0
A103: Suma de A21_DE_MAS_DE_360_DIAS | B103: 0
A104: Suma de A22_DE_1_A_30_DIAS | B104: 0
A105: Suma de A22_DE_31_A_90DIAS | B105: 0
A106: Suma de A22_DE_91_A_360_DIAS | B106: 0
A107: Suma de A22_DE_MAS_DE_360_DIAS | B107: 0
A108: Suma de A23_DE_1_A_30_DIAS | B108: 0
A109: Suma de A23_DE_31_A_90DIAS | B109: 0
A110: Suma de A23_DE_91_A_360_DIAS | B110: 0
A111: Suma de A23_DE_MAS_DE_360_DIAS | B111: 0
A112: Suma de A24_DE_1_A_30_DIAS | B112: 0
A113: Suma de A24_DE_31_A_90DIAS | B113: 0
A114: Suma de A24_DE_91_A_360_DIAS | B114: 0
A115: Suma de A24_DE_MAS_DE_360_DIAS | B115: 0
A116: Suma de A25_DE_1_A_30_DIAS | B116: 0
A117: Suma de A25_DE_31_A_90DIAS | B117: 0
A118: Suma de A25_DE_91_A_180_DIAS | B118: 0
A119: Suma de A25_DE_181_A_360_DIAS | B119: 0
A120: Suma de A25_DE_MAS_DE_360_DIAS | B120: 0
A121: Suma de A26_DE_1_A_30_DIAS | B121: 0
A122: Suma de A26_DE_31_A_90DIAS | B122: 0
A123: Suma de A26_DE_91_A_180_DIAS | B123: 0
A124: Suma de A26_DE_181_A_360_DIAS | B124: 0
A125: Suma de A26_DE_MAS_DE_360_DIAS | B125: 0
A126: Suma de A27_DE_1_A_30_DIAS | B126: 0
A127: Suma de A27_DE_31_A_90DIAS | B127: 0
A128: Suma de A27_DE_91_A_180_DIAS | B128: 0
A129: Suma de A27_DE_181_A_360_DIAS | B129: 0
A130: Suma de A27_DE_MAS_DE_360_DIAS | B130: 0
A131: Suma de carte_impr | B131: 8054414.21
A132: Suma de A1499 | B132: -9804021.91
A133: Suma de Carte_bruta | B133: 88366110.78
A134: Suma de A14 | B134: 78562088.87
B135: =+GETPIVOTDATA("Suma de A14",$A$3,"FEC_CORTE",DATE(2016,1,31))-GETPIVOTDATA("Suma de A1499",$A$3,"FEC_CORTE",DATE(2016,1,31)) -> 
A138: =+#REF! ->  | B138: =+SUM(B5:B9) -> 1349441.78 | C138: =+SUM(C5:C9) -> 0 | D138: 0 | E138: 0 | F138: 0 | G138: 0 | H138: 0 | I138: 0 | J138: 0 | K138: 0 | L138: 0 | M138: 0 | N138: 0
A139: =+#REF! ->  | B139: =+SUM(B10:B14) -> 114171.49 | C139: =+SUM(C10:C14) -> 0 | D139: 0 | E139: 0 | F139: 0 | G139: 0 | H139: 0 | I139: 0 | J139: 0 | K139: 0 | L139: 0 | M139: 0 | N139: 0
A140: =+#REF! ->  | B140: =+SUM(B15:B19) -> 24114.69 | C140: =+SUM(C15:C19) -> 0 | D140: 0 | E140: 0 | F140: 0 | G140: 0 | H140: 0 | I140: 0 | J140: 0 | K140: 0 | L140: 0 | M140: 0 | N140: 0
A141: =+#REF! ->  | B141: =+SUM(B20:B23) -> 33724312.84 | C141: =+SUM(C20:C23) -> 0 | D141: 0 | E141: 0 | F141: 0 | G141: 0 | H141: 0 | I141: 0 | J141: 0 | K141: 0 | L141: 0 | M141: 0 | N141: 0
A142: =+#REF! ->  | B142: =+SUM(B24:B27) -> 910688.72 | C142: =+SUM(C24:C27) -> 0 | D142: 0 | E142: 0 | F142: 0 | G142: 0 | H142: 0 | I142: 0 | J142: 0 | K142: 0 | L142: 0 | M142: 0 | N142: 0
A143: =+#REF! ->  | B143: =+SUM(B28:B31) -> 876012.5 | C143: =+SUM(C28:C31) -> 0 | D143: 0 | E143: 0 | F143: 0 | G143: 0 | H143: 0 | I143: 0 | J143: 0 | K143: 0 | L143: 0 | M143: 0 | N143: 0
A144: =+#REF! ->  | B144: =+SUM(B32:B35) -> 7561731.06 | C144: =+SUM(C32:C35) -> 0 | D144: 0 | E144: 0 | F144: 0 | G144: 0 | H144: 0 | I144: 0 | J144: 0 | K144: 0 | L144: 0 | M144: 0 | N144: 0
A145: =+#REF! ->  | B145: =+SUM(B36:B39) -> 364609.52 | C145: =+SUM(C36:C39) -> 0 | D145: 0 | E145: 0 | F145: 0 | G145: 0 | H145: 0 | I145: 0 | J145: 0 | K145: 0 | L145: 0 | M145: 0 | N145: 0
A146: =+#REF! ->  | B146: =+SUM(B40:B43) -> 97331.46 | C146: =+SUM(C40:C43) -> 0 | D146: 0 | E146: 0 | F146: 0 | G146: 0 | H146: 0 | I146: 0 | J146: 0 | K146: 0 | L146: 0 | M146: 0 | N146: 0
A147: =+#REF! ->  | B147: =+SUM(B44:B48) -> 33462647.42 | C147: =+SUM(C44:C48) -> 0 | D147: 0 | E147: 0 | F147: 0 | G147: 0 | H147: 0 | I147: 0 | J147: 0 | K147: 0 | L147: 0 | M147: 0 | N147: 0
A148: =+#REF! ->  | B148: =+SUM(B49:B53) -> 2829285.93 | C148: =+SUM(C49:C53) -> 0 | D148: 0 | E148: 0 | F148: 0 | G148: 0 | H148: 0 | I148: 0 | J148: 0 | K148: 0 | L148: 0 | M148: 0 | N148: 0
A149: =+#REF! ->  | B149: =+SUM(B54:B58) -> 2833825.16 | C149: =+SUM(C54:C58) -> 0 | D149: 0 | E149: 0 | F149: 0 | G149: 0 | H149: 0 | I149: 0 | J149: 0 | K149: 0 | L149: 0 | M149: 0 | N149: 0
A150: =+#REF! ->  | B150: =+SUM(B59:B63) -> 0 | C150: =+SUM(C59:C63) -> 0 | D150: 0 | E150: 0 | F150: 0 | G150: 0 | H150: 0 | I150: 0 | J150: 0 | K150: 0 | L150: 0 | M150: 0 | N150: 0
A151: =+#REF! ->  | B151: =+SUM(B64:B68) -> 0 | C151: =+SUM(C64:C68) -> 0 | D151: 0 | E151: 0 | F151: 0 | G151: 0 | H151: 0 | I151: 0 | J151: 0 | K151: 0 | L151: 0 | M151: 0 | N151: 0
A152: =+#REF! ->  | B152: =+SUM(B69:B73) -> 0 | C152: =+SUM(C69:C73) -> 0 | D152: 0 | E152: 0 | F152: 0 | G152: 0 | H152: 0 | I152: 0 | J152: 0 | K152: 0 | L152: 0 | M152: 0 | N152: 0
A153: =+#REF! ->  | B153: =+SUM(B74:B78) -> 0 | C153: =+SUM(C74:C78) -> 0 | D153: 0 | E153: 0 | F153: 0 | G153: 0 | H153: 0 | I153: 0 | J153: 0 | K153: 0 | L153: 0 | M153: 0 | N153: 0
A154: =+#REF! ->  | B154: =+SUM(B79:B83) -> 0 | C154: =+SUM(C79:C83) -> 0 | D154: 0 | E154: 0 | F154: 0 | G154: 0 | H154: 0 | I154: 0 | J154: 0 | K154: 0 | L154: 0 | M154: 0 | N154: 0
A155: =+#REF! ->  | B155: =+SUM(B84:B88) -> 0 | C155: =+SUM(C84:C88) -> 0 | D155: 0 | E155: 0 | F155: 0 | G155: 0 | H155: 0 | I155: 0 | J155: 0 | K155: 0 | L155: 0 | M155: 0 | N155: 0
A156: =+#REF! ->  | B156: =+SUM(B89:B93) -> 4213563.47 | C156: =+SUM(C89:C93) -> 0 | D156: 0 | E156: 0 | F156: 0 | G156: 0 | H156: 0 | I156: 0 | J156: 0 | K156: 0 | L156: 0 | M156: 0 | N156: 0
A157: =+#REF! ->  | B157: =+SUM(B94:B98) -> 3966.77 | C157: =+SUM(C94:C98) -> 0 | D157: 0 | E157: 0 | F157: 0 | G157: 0 | H157: 0 | I157: 0 | J157: 0 | K157: 0 | L157: 0 | M157: 0 | N157: 0
A158: =+#REF! ->  | B158: =+SUM(B99:B103) -> 407.97 | C158: =+SUM(C99:C103) -> 0 | D158: 0 | E158: 0 | F158: 0 | G158: 0 | H158: 0 | I158: 0 | J158: 0 | K158: 0 | L158: 0 | M158: 0 | N158: 0
A159: =+#REF! ->  | B159: =+SUM(B104:B107) -> 0 | C159: =+SUM(C104:C107) -> 0 | D159: 0 | E159: 0 | F159: 0 | G159: 0 | H159: 0 | I159: 0 | J159: 0 | K159: 0 | L159: 0 | M159: 0 | N159: 0
A160: =+#REF! ->  | B160: =+SUM(B108:B111) -> 0 | C160: =+SUM(C108:C111) -> 0 | D160: 0 | E160: 0 | F160: 0 | G160: 0 | H160: 0 | I160: 0 | J160: 0 | K160: 0 | L160: 0 | M160: 0 | N160: 0
A161: =+#REF! ->  | B161: =+SUM(B112:B115) -> 0 | C161: =+SUM(C112:C115) -> 0 | D161: 0 | E161: 0 | F161: 0 | G161: 0 | H161: 0 | I161: 0 | J161: 0 | K161: 0 | L161: 0 | M161: 0 | N161: 0
A162: =+#REF! ->  | B162: =+SUM(B116:B120) -> 0 | C162: =+SUM(C116:C120) -> 0 | D162: 0 | E162: 0 | F162: 0 | G162: 0 | H162: 0 | I162: 0 | J162: 0 | K162: 0 | L162: 0 | M162: 0 | N162: 0
A163: =+#REF! ->  | B163: =+SUM(B121:B125) -> 0 | C163: =+SUM(C121:C125) -> 0 | D163: 0 | E163: 0 | F163: 0 | G163: 0 | H163: 0 | I163: 0 | J163: 0 | K163: 0 | L163: 0 | M163: 0 | N163: 0
A164: =+#REF! ->  | B164: =+SUM(B126:B130) -> 0 | C164: =+SUM(C126:C130) -> 0 | D164: 0 | E164: 0 | F164: 0 | G164: 0 | H164: 0 | I164: 0 | J164: 0 | K164: 0 | L164: 0 | M164: 0 | N164: 0
A166: TOTAL CARTERA | B166: =+SUM(B138:B164) -> 88366110.78 | C166: =+SUM(C138:C164) -> 0 | D166: 0 | E166: 0 | F166: 0 | G166: 0 | H166: 0 | I166: 0 | J166: 0 | K166: 0 | L166: 0 | M166: 0 | N166: 0
A167: TOTAL CARTERA POR VENCER | B167: =+B138+B141+B144+B147+B150+B153+B156+B159+B162 -> 80311696.57 | C167: =+C138+C141+C144+C147+C150+C153+C156+C159+C162 -> 0 | D167: 0 | E167: 0 | F167: 0 | G167: 0 | H167: 0 | I167: 0 | J167: 0 | K167: 0 | L167: 0 | M167: 0 | N167: 0
A168: TOTAL CARTERA QUE NO DEVENGA INTERES | B168: =+B139+B142+B145+B148+B151+B154+B157+B160+B163 -> 4222722.43 | C168: 0 | D168: 0 | E168: 0 | F168: 0 | G168: 0 | H168: 0 | I168: 0 | J168: 0 | K168: 0 | L168: 0 | M168: 0 | N168: 0
A169: TOTAL CARTERA VENCIDA | B169: 3831691.78 | C169: 0 | D169: 0 | E169: 0 | F169: 0 | G169: 0 | H169: 0 | I169: 0 | J169: 0 | K169: 0 | L169: 0 | M169: 0 | N169: 0
B170: =+B166-B132 -> 98170132.69
B171: =+B170-B133 -> 9804021.91
